[Event "17th Caspian Cup-Masters 2019"]
[Site "Anzali"]
[Date "2019.02.17"]
[Round "7.11"]
[White "Khoshkalam, Seyed Mehrab"]
[Black "Moradi, Behrooz"]
[Result "1/2-1/2"]
[ECO "A04"]
[WhiteElo "2263"]
[BlackElo "2178"]
[Annotator "NA RC"]
[PlyCount "145"]
[EventDate "2019.02.12"]
[EventType "swiss"]
[EventRounds "9"]
[EventCountry "IRI"]
[SourceTitle "playchess.com"]
[Source "ChessBase"]
[SourceQuality "1"]
[TimeControl "5400+30"]

1. Nf3 e6 {[%emt 0:04:38]} 2. g3 {[%emt 0:00:21]} d5 {[%emt 0:00:48]} 3. Bg2 {[%emt 0:00:10]} c5 {[%emt 0:00:17]} 4. O-O {[%emt 0:00:14]} Nc6 {[%emt 0:00:11]} 5. d3 {[%emt 0:01:57]} Bd6 {[%emt 0:01:06]} 6. Nbd2 {[%emt 0:00:45]} Nge7 {[%emt 0:00:12]} 7. e4 {[%emt 0:00:54]} O-O {[%emt 0:00:15]} 8. Re1 {[%emt 0:00:09]} Qc7 {[%emt 0:00:26]} 9. c3 {[%emt 0:01:41]} Bd7 {[%emt 0:02:02]} 10. Nf1 {[%emt 0:04:50] A08: King's Indian Attack} (10. Qe2 f6 11. Nb3 Rad8 12. exd5 Nxd5 13. d4 b6 14. c4 Nde7 15. dxc5 bxc5 16. Be3 Na5 17. Nxa5 Qxa5 18. Rad1 Bc8 19. Nd2 Nf5 20. Nb3 Qxa2 21. Nxc5 Nxe3 22. Qxe3 Qxc4 23. Nxe6 Bxe6 {½-½ (23) Rasik,V (2452)-Svoboda,S (2453) Olomouc 2016}) 10... b5 {[%emt 0:05:43]} 11. h4 $146 {[%emt 0:11:05]} ({Predecessor:} 11. Bd2 a5 12. Nh4 b4 13. f4 f6 14. Ne3 bxc3 15. bxc3 d4 16. Nc4 e5 17. f5 Nc8 {0-1 (72) Oliveira,F (2080)-Matsuura,F (2327) Curitiba 2016}) 11... f6 {[%emt 0:07:24]} 12. exd5 {[%emt 0:01:01]} exd5 {[%emt 0:00:24]} 13. d4 {[%emt 0:00:16]} c4 {[%emt 0:03:17]} 14. Ne3 {[%emt 0:00:34]} Be8 {[%emt 0:00:44]} 15. b3 {[%emt 0:10:31]} Bf7 {[%emt 0:02:22]} 16. bxc4 {[%emt 0:03:51]} bxc4 {[%emt 0:00:28]} 17. Qa4 {[%emt 0:00:14]} Qa5 {[%emt 0:02:00]} ({Black should play} 17... h6 $11) 18. Qxa5 {[%emt 0:00:49]} Nxa5 {[%emt 0:00:09]} 19. Nc2 {[%emt 0:00:50]} (19. h5 $14) 19... Rab8 {[%emt 0:03:05]} 20. Ba3 {[%emt 0:02:46]} Bxa3 {[%emt 0:06:56]} 21. Nxa3 {[%emt 0:00:59]} Nc8 {[%emt 0:05:30]} 22. Rab1 {[%emt 0:05:16]} Nb6 {[%emt 0:01:35]} 23. Rb5 {[%emt 0:00:34]} Nb7 {[%emt 0:10:27]} 24. Nd2 {[%emt 0:05:05]} Rfd8 {[%emt 0:11:27]} 25. Re7 {[%emt 0:09:35]} Nd6 {[%emt 0:09:50]} 26. Ra5 {[%emt 0:02:04]} Nbc8 {[%emt 0:02:28]} 27. Re2 {[%emt 0:01:37]} Nb7 {[%emt 0:03:30]} 28. Ra6 {[%emt 0:00:52]} Rd6 {[%emt 0:00:45]} 29. Ra4 {[%emt 0:02:00]} a5 {[%emt 0:01:06]} 30. Nb5 {[%emt 0:04:44]} Rd8 {[%emt 0:02:30]} 31. Ra3 {[%emt 0:01:29]} Kf8 {[%emt 0:00:37]} 32. Nc7 {[%emt 0:01:04]} Rd7 {[%emt 0:01:39]} 33. Nb5 {[%emt 0:07:08] [#]} Re7 $1 {[%emt 0:03:31]} 34. Re3 {[%emt 0:00:45]} (34. Rxe7 $17 {is the only way for White.} Kxe7 35. Nc7) 34... Nb6 {[%emt 0:01:20]} 35. Nf1 {[%emt 0:03:07]} Be8 {[%emt 0:02:31]} 36. Rxe7 {[%emt 0:00:37]} Kxe7 {[%emt 0:00:05]} 37. Nc7 {[%emt 0:00:03]} Kd6 {[%emt 0:00:52]} 38. Nxe8+ {[%emt 0:00:16]} Rxe8 {[%emt 0:00:05]} 39. Ne3 {[%emt 0:00:03]} g6 {[%emt 0:01:01]} 40. Bxd5 {[%emt 0:01:11]} Nxd5 {[%emt 0:00:44]} 41. Nxc4+ {[%emt 0:00:01]} Ke6 {[%emt 0:00:44]} 42. Rb3 {[%emt 0:00:06]} Rc8 {[%emt 0:01:42]} 43. Nb2 {[%emt 0:00:55]} Nd6 {[%emt 0:00:16]} 44. Na4 {[%emt 0:00:11]} Ne4 {[%emt 0:02:02]} 45. Rb5 {[%emt 0:02:42]} Nexc3 {[%emt 0:00:46]} 46. Nc5+ {[%emt 0:00:08]} Kd6 {[%emt 0:00:50]} 47. Rxa5 {[%emt 0:00:07]} Ne2+ {[%emt 0:01:04]} 48. Kg2 {[%emt 0:00:10]} Nxd4 {[%emt 0:00:21]} 49. Ne4+ {[%emt 0:00:44]} Ke6 {[%emt 0:00:45]} 50. Nc5+ {[%emt 0:00:09] [#]} Ke7 $1 {[%emt 0:00:39]} 51. Ne4 {[%emt 0:00:18]} Rd8 {[%emt 0:00:47]} 52. Nc5 {[%emt 0:00:34]} Nc6 {[%emt 0:00:52]} 53. Ra6 {[%emt 0:00:23]} Ndb4 {[%emt 0:00:21]} 54. Ra3 {[%emt 0:00:52]} Rd5 {[%emt 0:00:17]} 55. Ne4 {[%emt 0:00:41]} f5 {[%emt 0:00:31]} 56. Ng5 {[%emt 0:00:11]} h6 {[%emt 0:00:11]} 57. Nh3 {[%emt 0:00:04]} Kf6 {[%emt 0:00:47]} 58. Rc3 {[%emt 0:00:13]} Rd3 {[%emt 0:00:56]} 59. Rc4 {[%emt 0:00:28]} g5 {[%emt 0:00:29]} 60. hxg5+ {[%emt 0:00:14]} hxg5 {[%emt 0:00:01]} 61. Ng1 {[%emt 0:00:11]} Ra3 {[%emt 0:00:32]} 62. g4 {[%emt 0:00:25]} f4 {[%emt 0:00:51]} 63. Nh3 {[%emt 0:00:33]} f3+ {[%emt 0:01:01]} 64. Kg3 {[%emt 0:00:07]} Rxa2 {[%emt 0:00:16]} 65. Rc5 {[%emt 0:00:19]} Ne5 {[%emt 0:00:50]} 66. Nxg5 {[%emt 0:00:13]} Nbd3 {[%emt 0:00:32]} 67. Ne4+ {[%emt 0:00:08]} Ke6 {[%emt 0:00:18]} 68. Rb5 {[%emt 0:00:10]} Re2 {[%emt 0:00:37]} 69. Ng5+ {[%emt 0:00:12]} Kf6 $11 {[%emt 0:00:23]} 70. Nxf3 {[%emt 0:00:09]} Nxf3 {[%emt 0:00:38]} 71. Kxf3 {[%emt 0:00:10]} Rxf2+ {[%emt 0:00:12]} 72. Ke3 {[%emt 0:00:05]} Rg2 73. Ke4 {Ke5+} 1/2-1/2

[Event "17th Caspian Cup-Masters 2019"]
[Site "Anzali"]
[Date "2019.02.17"]
[Round "7.12"]
[White "Rostami, Hossein"]
[Black "Rastbod, Ali"]
[Result "1/2-1/2"]
[ECO "B00"]
[WhiteElo "1908"]
[BlackElo "2260"]
[Annotator "NA RC"]
[PlyCount "77"]
[EventDate "2019.02.12"]
[EventType "swiss"]
[EventRounds "9"]
[EventCountry "IRI"]
[SourceTitle "playchess.com"]
[Source "ChessBase"]
[SourceQuality "1"]
[TimeControl "5400+30"]

1. e4 {[%emt 0:00:00]} Nc6 {[%emt 0:00:00]} 2. Nf3 {[%emt 0:00:36]} g6 {[%emt 0:00:00]} 3. d4 {[%emt 0:01:10]} Bg7 {[%emt 0:00:00]} 4. d5 {[%emt 0:02:59]} Nb8 {[%emt 0:00:00]} 5. c4 {[%emt 0:01:12]} d6 {[%emt 0:00:05]} 6. Nc3 {[%emt 0:01:08] B00: Queen's Fianchetto Defence, Nimzowitsch Defence} Nf6 {[%emt 0:00:10]} 7. Bd3 {[%emt 0:04:23]} O-O {[%emt 0:00:36]} 8. h3 {[%emt 0:02:11]} e5 {[%emt 0:03:08]} (8... c6 9. O-O e6 10. Bg5 h6 11. Bh4 cxd5 12. cxd5 exd5 13. exd5 Qa5 14. Qd2 Nxd5 15. Nxd5 Qxd5 {½-½ (58) Akobian,V (2640)-Grigoryan,K (2571) chess.com INT 2018}) 9. Be3 {[%emt 0:05:03]} Nh5 {[%emt 0:06:41]} 10. Qd2 $146 {[%emt 0:06:36]} ({Predecessor:} 10. g4 Nf4 11. Bxf4 exf4 12. Qd2 g5 13. O-O-O h6 14. Be2 Nd7 15. Nd4 Ne5 {½-½ (43) Bistrikova,E (2189)-Gaprindashvili,N (2043) St Petersburg 2007}) 10... f5 {[%emt 0:08:45] [#]} 11. Bg5 {[%emt 0:00:04]} ({Better is} 11. exf5 $1 $16 Bxf5 12. Bxf5 gxf5 13. g4) 11... Qe8 {[%emt 0:01:42]} 12. Bh6 {[%emt 0:07:15]} fxe4 {[%emt 0:06:47]} 13. Bxe4 {[%emt 0:04:37]} Nf4 {[%emt 0:02:23]} 14. Bxg7 {[%emt 0:02:36]} Kxg7 {[%emt 0:00:03]} 15. O-O-O {[%emt 0:05:57]} Qe7 {[%emt 0:05:58]} 16. Ne1 {[%emt 0:07:20]} a6 {[%emt 0:01:03]} 17. Nd3 {[%emt 0:03:45]} Nd7 {[%emt 0:01:39]} 18. Nxf4 {[%emt 0:05:49]} exf4 {[%emt 0:00:29]} 19. Rhe1 {[%emt 0:01:37]} Ne5 {[%emt 0:00:15]} 20. Qd4 {[%emt 0:01:50]} Bd7 {[%emt 0:01:23]} 21. Kb1 {[%emt 0:02:01]} Rab8 {[%emt 0:03:48]} 22. Bc2 {[%emt 0:02:10]} b6 {[%emt 0:03:44]} 23. Re4 {[%emt 0:01:41]} Qf6 {[%emt 0:00:42]} 24. f3 {[%emt 0:02:42]} b5 {[%emt 0:06:21]} 25. c5 {[%emt 0:06:15]} b4 {[%emt 0:01:57]} (25... Bf5 $11) 26. Ne2 {[%emt 0:01:07]} g5 {[%emt 0:00:34]} 27. cxd6 {[%emt 0:01:22]} cxd6 {[%emt 0:01:37]} 28. Qa7 {[%emt 0:00:31]} Ra8 {[%emt 0:12:30]} 29. Qb7 {[%emt 0:04:48]} Rfb8 {[%emt 0:01:10]} 30. Qc7 {[%emt 0:00:07]} Rc8 {[%emt 0:00:07]} 31. Qb7 {[%emt 0:00:19]} Rab8 {[%emt 0:00:11]} 32. Qa7 {[%emt 0:00:07]} b3 {[%emt 0:08:00]} 33. axb3 {[%emt 0:05:41]} Qe7 {[%emt 0:00:14]} 34. Nd4 {[%emt 0:00:52]} Kf6 {[%emt 0:03:00]} 35. h4 {[%emt 0:02:24]} h6 {[%emt 0:00:00]} 36. hxg5+ {[%emt 0:01:18]} hxg5 {[%emt 0:00:16] [#]} 37. g3 $2 {[%emt 0:01:41]} (37. Rxe5 $1 {[%mdl 512]} dxe5 38. Qxa6+ Be6 39. Nxe6) 37... Ra8 {[%emt 0:01:23]} (37... Be8 {keeps fighting.} 38. Qxe7+ (38. Qxa6 Ra8 $11) 38... Kxe7 39. gxf4 gxf4 40. Rxf4 Bf7) 38. Qb7 {[%emt 0:00:51]} Rcb8 {[%emt 0:06:58]} 39. Rh1 1/2-1/2

[Event "17th Caspian Cup-Masters 2019"]
[Site "Anzali"]
[Date "2019.02.19"]
[Round "9.6"]
[White "Daghli, Arash"]
[Black "Noroozi, Omid"]
[Result "0-1"]
[ECO "B90"]
[WhiteElo "2354"]
[BlackElo "2336"]
[Annotator "NA"]
[PlyCount "66"]
[EventDate "2019.02.12"]
[EventType "swiss"]
[EventRounds "9"]
[EventCountry "IRI"]
[SourceTitle "playchess.com"]
[Source "ChessBase"]
[SourceQuality "1"]
[TimeControl "5400+30"]

{[%evp 8,49,32,20,21,16,40,0,17,32767,32767,32767,32767,32767,32767,32767,32767,32767,44,47,35,18,32767,32767,-17,-32,-41,-63,-65,-53,-61,-75,-38,-100,-89,-78,-80,-114,32767,32767,32767,32767,32767,-66]} 1. e4 {[%emt 0:00:00]} c5 {[%emt 0:00:00]} 2. Nf3 {[%emt 0:00:00]} d6 {[%emt 0:00:00]} 3. d4 {[%emt 0:00:00]} cxd4 {[%emt 0:00:00]} 4. Nxd4 {[%emt 0:00:00]} Nf6 {[%emt 0:00:02]} 5. Nc3 {[%emt 0:00:03]} a6 {[%emt 0:00:05]} 6. Be3 {[%emt 0:00:10] LiveBook: 19302 Games} Ng4 {[%emt 0:02:02]} 7. Bc1 {[%emt 0:00:18]} (7. Bg5 $14) 7... Nf6 {[%emt 0:00:07]} 8. f3 {[%emt 0:00:29]} Qb6 {[%emt 0:00:22]} 9. Nb3 {[%emt 0:00:52]} e6 {[%emt 0:00:05]} 10. Qe2 {[%emt 0:00:43]} Be7 {[%emt 0:00:08] B90: Sicilian Najdorf: Unusual White 6th moves, 6 Be3 Ng4 and 6 Be3 e5} (10... Qc7 11. Be3 b5 12. O-O-O Nbd7 13. Qf2 b4 14. Ne2 Bb7 15. Kb1 Rc8 16. Ned4 d5 17. exd5 Nxd5 18. Bd3 g6 {½-½ (55) Lobanov,S (2526)-Banikas,H (2601) Skopje 2018}) 11. Be3 {[%emt 0:01:15]} Qc7 {[%emt 0:00:01]} 12. g4 {[%emt 0:05:53]} b5 {[%emt 0:00:17]} 13. a3 {[%emt 0:02:42]} Nfd7 $146 {[%emt 0:13:25]} ({Predecessor:} 13... Nc6 14. g5 Nd7 15. O-O-O Rb8 16. Kb1 O-O 17. h4 b4 18. axb4 Rxb4 {0-1 (25) Anderson,B (2456)-Morozov,D (2457) ICCF email 2010}) 14. Qf2 {[%emt 0:09:20]} Nc6 {[%emt 0:00:52]} 15. Nd4 {[%emt 0:03:42]} Nde5 {[%emt 0:08:22]} 16. Be2 {[%emt 0:01:54]} O-O {[%emt 0:02:28]} 17. Nxc6 {[%emt 0:07:09]} Qxc6 {[%emt 0:00:38]} 18. Bd4 {[%emt 0:12:55]} Rb8 {[%emt 0:03:27]} 19. f4 {[%emt 0:08:48]} Nc4 {[%emt 0:07:17]} (19... Ng6 $5 {[%cal Re7h4]} 20. O-O e5 21. fxe5 dxe5 $17) 20. Bxc4 {[%emt 0:01:17]} (20. b3 $11 Nxa3 21. Rxa3) 20... Qxc4 {[%emt 0:01:38]} 21. O-O-O {[%emt 0:03:25]} b4 {[%emt 0:01:17]} 22. axb4 {[%emt 0:03:40]} Qxb4 {[%emt 0:06:51]} 23. Ne2 {[%emt 0:06:54]} e5 {[%emt 0:11:55]} 24. fxe5 {[%emt 0:06:05]} dxe5 {[%emt 0:05:05]} 25. Bxe5 $15 {[%emt 0:10:34]} Bxg4 {[%emt 0:16:47]} 26. Rhg1 {[%emt 0:06:10]} Qxe4 {[%emt 0:06:17]} 27. Qd4 {[%emt 0:08:36]} Rb4 {[%emt 0:05:16]} 28. Qxe4 {[%emt 0:00:33]} Rxe4 {[%emt 0:00:02]} 29. Bxg7 {[%emt 0:00:30]} Kxg7 {[%emt 0:01:01]} 30. Nc3 {[%emt 0:00:11]} Rc4 {[%emt 0:00:42]} 31. Rd3 {[%emt 0:00:47]} Bc5 {[%emt 0:03:12]} 32. Rg2 {[%emt 0:00:30]} Kh6 {[%emt 0:00:39]} 33. Nd5 {[%emt 0:00:33]} f5 {[%emt 0:00:29]} 0-1

[Event "17th Caspian Cup-Masters 2019"]
[Site "Anzali"]
[Date "2019.02.19"]
[Round "9.7"]
[White "Khoshkalam, Seyed Mehrab"]
[Black "Danielyan, Vahe"]
[Result "1-0"]
[ECO "A05"]
[WhiteElo "2263"]
[BlackElo "2186"]
[Annotator "NA"]
[PlyCount "101"]
[EventDate "2019.02.12"]
[EventType "swiss"]
[EventRounds "9"]
[EventCountry "IRI"]
[SourceTitle "playchess.com"]
[Source "ChessBase"]
[SourceQuality "1"]
[TimeControl "5400+30"]

1. Nf3 {[%emt 0:00:00]} Nf6 {[%emt 0:00:00]} 2. g3 {[%emt 0:00:27]} b6 {[%emt 0:00:00]} 3. Bg2 {[%emt 0:00:06]} Bb7 {[%emt 0:00:00]} 4. d3 {[%emt 0:00:26]} d5 {[%emt 0:00:19]} 5. O-O {[%emt 0:00:34]} g6 {[%emt 0:00:05] LiveBook: 30 Games} 6. Nbd2 {[%emt 0:00:42] A05: Réti Opening: 1 Nf3 Nf6} (6. c4 c5 7. cxd5 Nxd5 8. d4 Bg7 9. dxc5 bxc5 10. Nfd2 O-O 11. Nc4 Bc6 12. Nbd2 Nb6 13. Na5 Bxg2 14. Kxg2 {1-0 (84) Karjakin,S (2777)-Moskalenko,A (2460) Moscow 2014}) 6... Bg7 {[%emt 0:00:08]} 7. c3 {[%emt 0:00:18]} O-O {[%emt 0:00:06]} 8. Qc2 {[%emt 0:00:23]} Nbd7 {[%emt 0:00:23]} 9. Re1 {[%emt 0:00:30]} Re8 {[%emt 0:01:00]} 10. e4 {[%emt 0:07:10]} dxe4 {[%emt 0:00:37]} 11. dxe4 {[%emt 0:00:35]} e5 {[%emt 0:00:05]} 12. b4 {[%emt 0:02:26]} Qe7 {[%emt 0:01:55]} 13. a4 {[%emt 0:01:55]} c5 $146 {[%emt 0:01:37]} ({Predecessor:} 13... a6 14. Bf1 Red8 15. Bc4 h6 16. Qb3 c6 {1-0 (53) Shabanaj,E (2070)-Jennitha,A (1966) Khanty-Mansiysk 2010}) 14. b5 $1 {[%emt 0:02:13]} a6 {[%emt 0:00:29]} 15. Bb2 {[%emt 0:00:06]} h6 {[%emt 0:06:50]} 16. Rad1 {[%emt 0:01:37]} axb5 {[%emt 0:00:22]} 17. axb5 {[%emt 0:00:01]} Qe6 {[%emt 0:00:38]} 18. Bf1 {[%emt 0:02:02]} Kh7 {[%emt 0:04:20]} 19. Nc4 {[%emt 0:04:31]} Bf8 {[%emt 0:02:33]} 20. Nfd2 {[%emt 0:01:26]} Ra2 {[%emt 0:08:09] [#]} (20... Kg8 $16) 21. Ne3 {[%emt 0:14:06]} (21. Na3 $1 $18 {and White stays clearly on top.}) 21... Qe7 {[%emt 0:09:04]} 22. f3 {[%emt 0:01:00]} h5 {[%emt 0:00:37] [#]} (22... c4 $16 {might work better.}) 23. Ndc4 $1 {[%emt 0:02:58]} Qe6 $18 {[%emt 0:10:50]} 24. Na3 {[%emt 0:02:30]} Rxb2 {[%emt 0:03:10]} 25. Qxb2 {[%emt 0:00:07]} c4 {[%emt 0:00:03]} 26. Bxc4 {[%emt 0:00:38]} Qe7 {[%emt 0:00:01]} 27. Nac2 {[%emt 0:00:35]} h4 {[%emt 0:00:01]} 28. g4 {[%emt 0:07:29]} Kg7 {[%emt 0:00:09]} 29. Nb4 {[%emt 0:01:39]} Nc5 {[%emt 0:01:29]} 30. Bd5 {[%emt 0:02:40]} Nh7 {[%emt 0:03:29]} 31. Bxb7 {[%emt 0:01:59]} Qxb7 {[%emt 0:00:33]} 32. Qd2 {[%emt 0:01:09]} Kh8 {[%emt 0:07:00]} 33. Qf2 {[%emt 0:03:47]} Be7 {[%emt 0:05:38]} 34. Nc6 {[%emt 0:01:10]} Bg5 {[%emt 0:06:41]} 35. h3 {[%emt 0:02:36]} Bxe3 {[%emt 0:03:19]} 36. Rxe3 {[%emt 0:03:14]} g5 {[%emt 0:00:03]} 37. Re2 {[%emt 0:00:32]} Nf8 {[%emt 0:00:13]} 38. Ra2 {[%emt 0:00:27]} Qc8 {[%emt 0:01:30]} 39. Ra7 {[%emt 0:00:31]} Qe6 {[%emt 0:00:00]} 40. Nd8 {[%emt 0:00:59]} Rxd8 {[%emt 0:00:02]} 41. Rxd8 {[%emt 0:00:09]} Kg7 {[%emt 0:00:00]} 42. Qd2 {[%emt 0:02:15]} Ng6 {[%emt 0:04:00]} 43. Rd6 {[%emt 0:02:45]} Qb3 {[%emt 0:01:53]} 44. Qa2 {[%emt 0:00:32]} Qxa2 {[%emt 0:01:38]} 45. Rxa2 {[%emt 0:00:02]} Nf4 {[%emt 0:00:05]} 46. Kh2 {[%emt 0:00:19]} Ncd3 {[%emt 0:00:11]} 47. Rxd3 {[%emt 0:00:01]} Nxd3 {[%emt 0:00:05]} 48. Ra6 {[%emt 0:00:38]} Ne1 {[%emt 0:00:07]} 49. Rxb6 {[%emt 0:00:04]} Nxf3+ {[%emt 0:00:02]} 50. Kg2 {[%emt 0:00:12]} Nd2 {[%emt 0:00:04]} 51. Rc6 {[%emt 0:00:10]} 1-0

[Event "17th Caspian Cup-Masters 2019"]
[Site "Anzali"]
[Date "2019.02.19"]
[Round "9.8"]
[White "Asgari, Morteza"]
[Black "Naderi, M.sadegh"]
[Result "1-0"]
[ECO "B12"]
[WhiteElo "2175"]
[BlackElo "2242"]
[Annotator "NA"]
[PlyCount "131"]
[EventDate "2019.02.12"]
[EventType "swiss"]
[EventRounds "9"]
[EventCountry "IRI"]
[SourceTitle "playchess.com"]
[Source "ChessBase"]
[SourceQuality "1"]
[TimeControl "5400+30"]

1. e4 {[%emt 0:00:00] Eljanov,P} c6 {[%emt 0:00:00]} 2. d4 {[%emt 0:00:00]} d5 {[%emt 0:00:00]} 3. e5 {[%emt 0:00:12]} Bf5 {[%emt 0:00:00]} 4. Nf3 {[%emt 0:00:10]} e6 {[%emt 0:00:00]} 5. Be2 {[%emt 0:00:08]} Nd7 {[%emt 0:00:00]} 6. O-O {[%emt 0:00:10]} Ne7 {[%emt 0:00:00]} 7. Nbd2 {[%emt 0:00:26]} h6 {[%emt 0:01:00] LiveBook: 792 Games B12: Caro-Kann: Advance Variation} 8. c3 {[%emt 0:00:34]} Qc7 {[%emt 0:00:42]} 9. a4 {[%emt 0:00:33]} a5 {[%emt 0:06:42]} 10. Re1 {[%emt 0:00:24]} Bh7 $146 {[%emt 0:10:32]} ({Predecessor:} 10... Bg6 11. Nf1 c5 12. Bb5 Nc6 13. c4 Nb6 14. cxd5 Nxd5 {0-1 (41) Kryvoruchko,Y (2706)-Eljanov,P (2719) Lvov 2014 CBM 164 [Eljanov,P]}) 11. Nf1 {[%emt 0:06:54]} Ng6 {[%emt 0:05:33]} 12. g3 {[%emt 0:03:50]} Be7 {[%emt 0:00:54]} 13. h4 {[%emt 0:01:59]} f6 {[%emt 0:07:25]} 14. h5 {[%emt 0:03:11]} ({White should play} 14. exf6 $16 Nxf6 15. Bd3) 14... Ngf8 {[%emt 0:00:12]} 15. exf6 {[%emt 0:04:09]} gxf6 {[%emt 0:00:28]} 16. Bxh6 {[%emt 0:00:54]} O-O-O {[%emt 0:07:15]} (16... Be4 $14) 17. Nh4 {[%emt 0:07:11]} e5 {[%emt 0:05:45] [#]} (17... Be4 $16) 18. Ne3 $1 {[%emt 0:10:18]} Bd6 {[%emt 0:12:00]} 19. Bg4 {[%emt 0:09:11]} Rg8 {[%emt 0:03:09]} 20. Nef5 {[%emt 0:03:58]} Kb8 {[%emt 0:02:25]} 21. Be3 {[%emt 0:13:21]} Ne6 {[%emt 0:09:52]} 22. Kh2 {[%emt 0:10:50]} Ng5 {[%emt 0:04:53]} 23. Nxd6 {[%emt 0:01:51]} Qxd6 {[%emt 0:00:05]} 24. f4 {[%emt 0:03:52]} Ne4 {[%emt 0:02:57]} 25. f5 {[%emt 0:06:30]} exd4 {[%emt 0:03:49]} 26. Bf4 {[%emt 0:00:23]} Ne5 {[%emt 0:00:01]} 27. Bh3 {[%emt 0:03:45]} dxc3 {[%emt 0:02:04]} 28. bxc3 {[%emt 0:00:22]} Ka8 {[%emt 0:00:38]} 29. Ng6 {[%emt 0:03:07]} Qc5 {[%emt 0:01:23]} 30. Rf1 {[%emt 0:03:42]} Nxc3 {[%emt 0:01:53]} 31. Qb3 {[%emt 0:01:47]} d4 {[%emt 0:03:24]} 32. Rae1 {[%emt 0:00:04]} Bxg6 {[%emt 0:06:07]} 33. Bxe5 {[%emt 0:01:24]} Bxh5 {[%emt 0:03:42]} 34. Bxf6 {[%emt 0:00:17]} Qd6 {[%emt 0:00:25]} 35. Be5 {[%emt 0:00:20]} Qh6 {[%emt 0:00:01]} 36. Bf4 {[%emt 0:00:50]} Qh7 {[%emt 0:00:24]} 37. Qb6 {[%emt 0:00:58]} Rd5 {[%emt 0:00:37]} 38. Re5 {[%emt 0:00:03]} Be2 {[%emt 0:02:05]} 39. Rxd5 {[%emt 0:01:05]} Nxd5 {[%emt 0:00:06]} 40. Qxa5+ {[%emt 0:00:32]} Ba6 {[%emt 0:00:02]} 41. Be5 {[%emt 0:00:38]} Re8 {[%emt 0:01:26]} 42. Bxd4 {[%emt 0:00:28]} Qh5 {[%emt 0:00:32]} 43. Rf2 {[%emt 0:00:31]} Kb8 {[%emt 0:00:29]} 44. Qd2 {[%emt 0:00:30]} Be2 {[%emt 0:00:30]} 45. Bf6 {[%emt 0:00:34]} Nxf6 {[%emt 0:00:31]} 46. Qd6+ {[%emt 0:00:01]} Ka8 {[%emt 0:00:17]} 47. Qxf6 {[%emt 0:00:11]} Rh8 {[%emt 0:00:41]} 48. Qh4 {[%emt 0:00:28]} Qe8 {[%emt 0:00:04]} 49. Qf4 {[%emt 0:01:18]} Qh5 {[%emt 0:00:51]} 50. Qh4 {[%emt 0:00:02]} Qe8 {[%emt 0:00:25]} 51. Qg5 {[%emt 0:00:09]} Bc4 {[%emt 0:00:41]} 52. f6 {[%emt 0:00:38]} Qe1 53. Qd2 {[%emt 0:01:13]} Qxd2 {[%emt 0:01:01]} 54. Rxd2 {[%emt 0:00:08]} Be6 {[%emt 0:00:01]} 55. Rd8+ {[%emt 0:00:48]} Rxd8 {[%emt 0:00:11]} 56. Bxe6 {[%emt 0:00:02]} Kb8 {[%emt 0:00:28]} 57. Kh3 {[%emt 0:00:18]} Kc7 {[%emt 0:00:12]} 58. Kg4 {[%emt 0:00:02]} Kd6 {[%emt 0:00:14]} 59. Kf5 {[%emt 0:00:01]} Ra8 {[%emt 0:01:25]} 60. Bb3 {[%emt 0:00:14]} b5 {[%emt 0:00:53]} 61. g4 {[%emt 0:01:54]} bxa4 {[%emt 0:00:35]} 62. Ba2 {[%emt 0:00:03]} a3 {[%emt 0:00:30]} 63. g5 {[%emt 0:01:24]} c5 64. g6 {[%emt 0:00:21]} c4 {[%emt 0:00:40]} 65. g7 {[%emt 0:00:47]} c3 {[%emt 0:00:44]} 66. f7 {[%emt 0:00:10] Kd5 Ke4+} 1-0